Workbook

Sheet mappatura
A1: MAPPATURA DELLE ATTIVITÀ A RISCHIO CORRUZIONE
A2: Struttura | C2: Ripartizione 16 Amministrazione istruzione e formazione
A3: Definizione del processo/fase | O3: Valutazione del rischio | AK3: Misura di prevenzione | AO3: Monitoraggio sulla misura
O4: a) Identificazione del rischio | R4: b) Analisi del rischio | AI4: c) ponderazione del rischio
R5: PROBABILITÀ - Indicatori per valutare la probabilità che un evento corruttivo si verifichi | AB5: IMPATTO - Indicatori per valutare quale impatto può avere un evento corruttivo | AK5: Misura | AL5: Parametri | AM5: Responsabile | AN5: Termine per l'attuazione | AO5: Attuazione | AP5: Termine | AQ5: Efficacia
A6: Ufficio / Unità organizzativa / Area | B6: Area a rischio | C6: "Altra" area a rischio | D6: Processo decisionale (vedi allegato 2) | E6: Fase a rischio del processo | F6: Stakeholder esterni / interni / pubblici | G6: Interesse primario | H6: Interesse secondario | I6: Origine / Esigenza del processo (INPUT) | J6: Risultato atteso (OUTPUT) | K6: Fonte normativa | L6: Responsabile del procedimento | M6: Totale somma spesa anno precedente | N6: Numero totale pratiche anno precedente | O6: Descrizione del rischio | P6: Causa del rischio | Q6: Anomalie significative | R6: Discrezionalità | S6: Rilevanza esterna | T6: Complessità del processo | U6: Rilevanza economica | V6: Frazionabilità del processo | W6: Controlli durante il processo | X6: Tracciabilità | Y6: Coinvolgimento di soggetti esterni | Z6: TOTALE | AA6: VALORE MEDIO DELLA PROBABILITÀ | AB6: Assetto organizzativo | AC6: Incidenza economica | AD6: Reputazione | AE6: Immagine e organizzazione | AF6: TOTALE | AG6: VALORE MEDIO DELL'IMPATTO | AH6: VALUTAZIONE COMPLESSIVA DEL RISCHIO | AI6: Graduatoria del rischio | AJ6: Annotazioni varie - attività a rischio | AK6: Misura di prevenzione | AL6: Parametri per valutare l'efficacia della misura | AM6: Struttura responsabile dell'attuazione | AN6: Termine per l'attuazione | AO6: Si è attuata la misura ? | AP6: Si è rispettato il termine ? | AQ6: Valutazione
A7: Direzione di ripartizione | B7: - Altro (indicare nella colonna a fianco se ci sono altre attività a rischio al di fuori di quelle che rientrano in una di quelle sopra indicate). | C7: Servizi in missione del personale docente, direttivo ed ispettivo | D7: Rimborso dei danni subiti dal proprio veicolo in missione di servizio | F7: esterni: personale insegnante; dirigenti scolastici, ispettori scolastici | G7: Corretta applicazione delle disposizioni del contratto collettivo | H7: Rimborso danni subiti durante la missione | I7: I contratti collettivi dispongono che, a istanza di parte, i danni subiti dal proprio veicolo in missione di servizio possono essere rimborsati. | J7: Accoglimento o respingimento dell'istanza. | K7: CCP del 23.4.2003 | L7: - direttore di Ripartizione | M7: 6448.31 | N7: 8 | O7: Errata valutazione del grado di colpevolezza dell'autista del veicolo. | P7: Discrezionalità, Complessità delle disposizioni. Mancanza di una cultura della legalità/dell'integrità. | R7: E’ parzialmente vincolato dalla legge e/o da atti amministrativi (3) | S7: Sì, il risultato del p. è rivolto dir. ad ut. esterni alla p.a. di rif. (5) | T7: No, il processo coinvolge una sola p.a. (1) | U7: Comporta l’attribuzione di vantaggi a soggetti esterni (3) | V7: No (1) | W7: Da più persone, tra cui quella che ha svolto le fasi precedenti (3) | X7: Sì (1) | Y7: No (1) | Z7: 18 | AA7: =ROUND(+Z7/8,1) -> 2.3 | AB7: Fino a circa il 20% (1) | AC7: No (1) | AD7: Non ne abbiamo memoria (1) | AE7: A livello di dirigente (5) | AF7: 8 | AG7: =ROUND(+AF7/4,1) -> 2 | AH7: =+AA7*AG7 -> 4.6 | AI7: 4 | AK7: Conivolgimento di più persone nell'iter decisionale. Richiesta di pareri in merito alla stima dell'ammontare del danno. | AL7: Numero di ricorsi/reclami. | AM7: 16.0 | AN7: già scaduto | AO7: Sì | AP7: Sì | AQ7: efficace
A8: Direzione di ripartizione | B8: - Altro (indicare nella colonna a fianco se ci sono altre attività a rischio al di fuori di quelle che rientrano in una di quelle sopra indicate). | C8: Stato giuridico del personale docente e direttivo | D8: Provvedimenti disciplinari del personale docente e direttivo | F8: esterni: personale insegnante; dirigenti scolastici | G8: Corretta applicazione delle disposizioni | H8: Corretta applicazione delle disposizioni | I8: Sanzionamento di comportamenti scorretti dei dipendenti | J8: Una sanzione disciplinare viene comminata o meno. | K8: d.lgs. n. 165/2001, d.lgs. n. 297/1994, | L8: - direttore di Ripartizione | N8: 18 | O8: Errata applicazione delle disposizioni. Favoritismi personali. | P8: Disposizioni non contengono una chiara elencazione dei comportamenti scorretti. | R8: No, è del tutto vincolato (1) | S8: Sì, il risultato del p. è rivolto dir. ad ut. esterni alla p.a. di rif. (5) | T8: No, il processo coinvolge una sola p.a. (1) | U8: Comporta l’attribuzione di vantaggi a soggetti esterni (3) | V8: No (1) | W8: Da più persone, tra cui quella che ha svolto le fasi precedenti (3) | X8: Sì (1) | Y8: No (1) | Z8: 16 | AA8: =ROUND(+Z8/8,1) -> 2 | AB8: Fino a circa il 20% (1) | AC8: No (1) | AD8: Non ne abbiamo memoria (1) | AE8: A livello di dirigente (5) | AF8: 8 | AG8: =ROUND(+AF8/4,1) -> 2 | AH8: =+AA8*AG8 -> 4 | AI8: 2 | AK8: Conivolgimento di più persone nell'iter decisionale. | AL8: Numero di ricorsi/reclami. | AM8: 16.0 - Direzione provinciale Scuole primarie e secondarie di primo e secondo grado | AN8: già scaduto | AO8: Sì | AP8: Sì | AQ8: efficace
A9: Direzione di ripartizione, Uffici della rip. 16 | B9: - Altro (indicare nella colonna a fianco se ci sono altre attività a rischio al di fuori di quelle che rientrano in una di quelle sopra indicate). | C9: Accesso agli atti, accesso civico | D9: Accoglimento o respingimento dell'istanza di accesso agli atti o di accesso civico | F9: esterni: soggetti privati, personale docente | G9: Sostegno alla partecipazione e garanzia della imparzialità e della trasparenza | H9: Accesso agli atti amministrativi, protezione dei dati personali | I9: Le cittadine ed i cittadini presentano un'istanza di accesso agli atti/di accesso civico. | J9: L'istanza di accesso agli atti/di accesso civico viene accolta o respinta. | K9: LP n. 17/1993, d.p.p. n. 21/1994, d.lgs. n. 33/2013 | L9: - direttore d'Ufficio | N9: 20 | O9: Cittadini potrebbero corrompere il dipendente al fine di poter eliminare dei documenti dal fascicolo o di poter accedere a dei documenti senza avere i requisiti. | P9: Complessità delle disposizioni sull'accesso agli atti; mancanza di una cultlura dell'integrità. | R9: E’ parzialmente vincolato dalla legge e/o da atti amministrativi (3) | S9: Sì, il risultato del p. è rivolto dir. ad ut. esterni alla p.a. di rif. (5) | T9: No, il processo coinvolge una sola p.a. (1) | U9: Ha rilevanza esclusivamente interna (1) | V9: No (1) | W9: Da più persone, tra cui quella che ha svolto le fasi precedenti (3) | X9: In parte (3) | Y9: No (1) | Z9: 18 | AA9: =ROUND(+Z9/8,1) -> 2.3 | AB9: Fino a circa il 20% (1) | AC9: No (1) | AD9: No (0) | AE9: A livello di dipendente (1) | AF9: 3 | AG9: =ROUND(+AF9/4,1) -> 0.8 | AH9: =+AA9*AG9 -> 1.84 | AK9: Visione di fascicoli avviene in presenza di un dipendente. Corsi di formazione. | AL9: Numero ricorsi. | AM9: Direzione di ripartizione, Uffici della rip. 16 | AN9: già scaduto | AO9: Sì | AP9: Sì | AQ9: efficace
A10: 16.1 Ufficio Ordinamento scolastico | B10: - Altro (indicare nella colonna a fianco se ci sono altre attività a rischio al di fuori di quelle che rientrano in una di quelle sopra indicate). | C10: Protocollo | D10: Protocollo in entrata di istanze in presenza di termini perentori (ad es. graduatorie, concorsi) | F10: esterni: soggetti privati, personale delle scuole; pubblici: scuole; altri enti. | G10: Regolare svolgimento della protocollazione; parità di trattamento | H10: Regolare svolgimento della protocollazione; parità di trattamento | I10: Varie disposizioni prevedono che una serie di documenti sono soggetti all'obbligo di protocollazione. | J10: Tutti i documenti aventi rilevanza giuridico-amministrativa vengono protocollati. | K10: d.p.p. n. 17/2015 | L10: - direttore d'Ufficio | N10: 4000 | O10: Dipendente potrebbe ottenere dei benefici per datare erratamente e protocollare un'istanza pervenuta dopo il termine perentorio (ad es. istanze per l'iscrizione in graduatoria o per la partecipazione ad un concorso). | P10: Mancanza di una cultura dell'integrità. | R10: No, è del tutto vincolato (1) | S10: Sì, il risultato del p. è rivolto dir. ad ut. esterni alla p.a. di rif. (5) | T10: No, il processo coinvolge una sola p.a. (1) | U10: Ha rilevanza esclusivamente interna (1) | V10: No (1) | W10: Da più persone, tra cui quella che ha svolto le fasi precedenti (3) | X10: Sì (1) | Y10: No (1) | Z10: 14 | AA10: 1.8 | AB10: Dal 20% a circa il 60% (3) | AC10: No (1) | AD10: No (0) | AE10: A livello di dipendente (1) | AF10: 5 | AG10: 1.3 | AH10: 2.34 | AK10: Incentivare le comunicazioni per via elettronica per non poter modificare la data di ricezione di un documento. Con il programma di protocollazione elettronica eProcs non è possibilie modificare la data in cui è stata effettuata la protocollazione. | AL10: Difficoltà di modificare ex post la datazione di un documento pervenuto per via elettronica. | AM10: Ufficio 16.1 | AN10: 3 anni
A11: 16.1 Ufficio Ordinamento scolastico | B11: - Altro (indicare nella colonna a fianco se ci sono altre attività a rischio al di fuori di quelle che rientrano in una di quelle sopra indicate). | C11: equiparazione dei titoli di studio stranieri nella scuola e nella formazione professionale | D11: redazione dei decreti di equipollenza, riconoscimento o di conformità | F11: esterni: soggetti privati; interni: Direzione provinciale Scuole primarie e secondarie di primo e secondo grado, delle scuole professionali | G11: Equipollenza/riconoscimento di esami conclusivi di cicli di studio nelle scuole e nelle scuole professionali, a condizione che vi siano i presupposti | H11: Ottenimento dell'equipollenza/riconoscimento | I11: soggetti privati possono presentare un'istanza di equipollenza/riconoscimento | J11: L'istanza viene accolta o respinta | K11: d.lgs. n. 297/1994; LP n. 40/1992; diverse circolari ministeriali | L11: - direttore di Ripartizione | N11: 17 | O11: Concessione della equipollenza o del riconoscimento in assenza dei requisiti | P11: Complessità e molteplicità della documentazione presentata | R11: E’ parzialmente vincolato dalla legge e/o da atti amministrativi (3) | S11: Sì, il risultato del p. è rivolto dir. ad ut. esterni alla p.a. di rif. (5) | T11: No, il processo coinvolge una sola p.a. (1) | U11: Comporta l’attribuzione di vantaggi a soggetti esterni (3) | V11: No (1) | W11: Da più persone, tra cui quella che ha svolto le fasi precedenti (3) | X11: Sì (1) | Y11: No (1) | Z11: 18 | AA11: =ROUND(+Z11/8,1) -> 2.3 | AB11: Fino a circa il 20% (1) | AC11: No (1) | AD11: No (0) | AE11: A livello di dirigente (5) | AF11: 7 | AG11: =ROUND(+AF11/4,1) -> 1.8 | AH11: =+AA11*AG11 -> 4.14 | AI11: 2 | AK11: Più livelli della Direzione istruzione e formazione sono coinvolti nel processo decisionale; Processo di controllo a più fasi; Valutazione mediante una commissione trasversale alle Direzioni istruzione e formazione | AL11: Numero di ricorsi/reclami. | AM11: Ufficio 16.1 | AN11: immediato | AO11: Sì | AP11: Sì | AQ11: efficace
A12: 16.1 Ufficio Ordinamento scolastico | B12: - Altro (indicare nella colonna a fianco se ci sono altre attività a rischio al di fuori di quelle che rientrano in una di quelle sopra indicate). | C12: Esami | D12: Esami conclusivi delle scuole secondarie di primo e di secondo grado; esame di stato per liberi professionisti | F12: esterni: personale docente, dirigenti scolastici; interni: Direzione provinciale Scuole primarie e secondarie di primo e secondo grado, delle scuole professionali | G12: Corretto svolgimento degli esami di Stato/ degli esami per liberi professionisti | H12: Corretta nomina iquale o delle commissioni di esame di Stato | I12: La direttrice provinciale compentente nomina i componenti degli esami di Stato; per gli esami di stato per liberi professionisti vengono comunicati degli insegnanti al MIUR; le tracce vengono tradotte in tedesco. | J12: Nomina dei componenti delle commissioni degli esami di stato; comunicazione di docenti al MIUR per gli esami di stato per liberi professionisti; traduzione delle tracce. | K12: d.lgs. n. 62/2017; d.p.p. n. 13/2008; diverse circolari ministeriali | L12: - direttore d'Ufficio | N12: 3 | O12: Favoreggiamento di alcuni docenti (se questi non vengono nominati quali componenti o presidenti delle commissioni d'esame in base alla graduatoria). Il personale competente a tradurre le tracce d'esame potrebbe inoltrarle a terzi. | P12: Non corretta applicazione delle disposizioni, mancanza di una cultura dell'integrità. | R12: E’ parzialmente vincolato dalla legge e/o da atti amministrativi (3) | S12: No, ha come destinatario finale un ufficio interno (2) | T12: No, il processo coinvolge una sola p.a. (1) | U12: Comporta l’attribuzione di vantaggi a soggetti esterni (3) | V12: No (1) | W12: Da più persone, tra cui quella che ha svolto le fasi precedenti (3) | X12: Sì (1) | Y12: No (1) | Z12: 15 | AA12: =ROUND(+Z12/8,1) -> 1.9 | AB12: Fino a circa il 20% (1) | AC12: No (1) | AD12: No (0) | AE12: A livello di dirigente (5) | AF12: 7 | AG12: =ROUND(+AF12/4,1) -> 1.8 | AH12: =+AA12*AG12 -> 3.42 | AK12: Le commissioni d'esame vengono generate in automatico tramite un programma. | AL12: Diminuzione di domande in relazione alla nomina come componente nelle commissioni di esame. Procedimento diventa più snello e trasparente. | AM12: Ufficio 16.1 - Ispettorato | AN12: già scaduto | AO12: Sì | AP12: Sì | AQ12: efficace
A13: 16.2 Ufficio Amministrazione scolastica | B13: - Altro (indicare nella colonna a fianco se ci sono altre attività a rischio al di fuori di quelle che rientrano in una di quelle sopra indicate). | C13: Scuole private | D13: Equipollenza, riconoscimento | F13: esterni: scuole private; interni: Direzione provinciale Scuole primarie e secondarie di primo e secondo grado | G13: Assegnare alle istituzioni private un incarico di istruzione pubblica, qualora vi siano i presupposti. | H13: Acquisire un incarico di formazione pubblica, ad esempio per poter rilasciare diplomi validi o per ottenere un finanziamento. | I13: Le scuole private possono presentare un'istanza di parificazione/di riconoscimento. | J13: L'istanza di parificazione/di riconoscimento viene accolta o respinta. | K13: LP n. 12/2000 | L13: - impiegato addetto | N13: 3 | O13: Viene riconosciuta la parità/il riconoscimento senza che ne sussistano i presupposti. | P13: Errata applicazione delle disposizioni. | R13: E’ parzialmente vincolato dalla legge e/o da atti amministrativi (3) | S13: Sì, il risultato del p. è rivolto dir. ad ut. esterni alla p.a. di rif. (5) | T13: No, il processo coinvolge una sola p.a. (1) | U13: Comporta l’attribuzione di considerevoli vantaggi a soggetti esterni (5) | V13: No (1) | W13: Da più persone, tra cui quella che ha svolto le fasi precedenti (3) | X13: In parte (3) | Y13: No (1) | Z13: 22 | AA13: 2.8 | AB13: Fino a circa il 20% (1) | AC13: No (1) | AD13: Non ne abbiamo memoria (1) | AE13: A livello di dipendente (1) | AF13: 4 | AG13: 1 | AH13: 2.8 | AI13: 1 | AK13: Elaborazione di una check-list. | AL13: Completezza e correttezza. | AM13: Ufficio 16.2 | AN13: già scaduto | AO13: Sì | AP13: Sì | AQ13: efficace
A14: 16.2 Ufficio Amministrazione scolastica | B14: - I) Controlli, verifiche, ispezioni e sanzioni | C14: Scuole private | D14: Controllo del permanere dei requisiti | F14: esterni: scuole private; interni: Direzione provinciale Scuole primarie e secondarie di primo e secondo grado | G14: Assegnare alle istituzioni private un incarico di istruzione pubblica, qualora vi siano i presupposti. | H14: Acquisire un incarico di formazione pubblica, ad esempio per potere rilasciare diplomi validi o per ottenere un finanziamento. | I14: Il controllo è necessario per rispondere alle disposizioni normative. | J14: A seguito di controlli le scuole private possono continuare ad essere parificate/riconosciute. | K14: LP n. 12/2000 | L14: - impiegato addetto | N14: 9 | O14: L'esito del controllo risulta positivo anche in presenza di lacune. | P14: Errata applicazione delle disposizioni. | R14: E’ parzialmente vincolato dalla legge e/o da atti amministrativi (3) | S14: Sì, il risultato del p. è rivolto dir. ad ut. esterni alla p.a. di rif. (5) | T14: No, il processo coinvolge una sola p.a. (1) | U14: Comporta l’attribuzione di considerevoli vantaggi a soggetti esterni (5) | V14: No (1) | W14: Da più persone, tra cui quella che ha svolto le fasi precedenti (3) | X14: In parte (3) | Y14: No (1) | Z14: 22 | AA14: 2.8 | AB14: Fino a circa il 20% (1) | AC14: No (1) | AD14: Non ne abbiamo memoria (1) | AE14: A livello di dipendente (1) | AF14: 4 | AG14: 1 | AH14: 2.8 | AI14: 2 | AK14: Elaborazione di una check-list. | AL14: Completezza e correttezza. | AM14: Ufficio 16.2 | AN14: già scaduto | AO14: Sì | AP14: Sì | AQ14: efficace
A15: 16.2 Ufficio Amministrazione scolastica | B15: - Altro (indicare nella colonna a fianco se ci sono altre attività a rischio al di fuori di quelle che rientrano in una di quelle sopra indicate). | C15: Determinazione degli organici | D15: Mobilità del personale docente con contratto a tempo indeterminato | F15: esterni: personale docente; interni: Direzione provinciale Scuole primarie e secondarie di primo e secondo grado | G15: Assegnazione nei termini del personale docente alle scuole | H15: Esigenze personali legate alla sede di servizio (es. vicinanza con il luogo di residenza) | I15: Questo processo è necessario per assegnare il personale docente alle istituzioni scolastiche. | J15: I docenti vengono assegnati alle istituzioni scolastiche. | K15: Contratto collettivo decentrato sulla mobilità | L15: - direttore d'Ufficio | N15: 1320 | O15: Favoreggiamento o sfavoreggiamento di docenti nell'ambito dell'assegnazione. | P15: Errata applicazione delle disposizioni. | R15: No, è del tutto vincolato (1) | S15: Sì, il risultato del p. è rivolto dir. ad ut. esterni alla p.a. di rif. (5) | T15: No, il processo coinvolge una sola p.a. (1) | U15: Comporta l’attribuzione di vantaggi a soggetti esterni (3) | V15: No (1) | W15: Da più persone, tra cui quella che ha svolto le fasi precedenti (3) | X15: In parte (3) | Y15: No (1) | Z15: 18 | AA15: 2.3 | AB15: Dal 20% a circa il 60% (3) | AC15: No (1) | AD15: No (0) | AE15: A livello di dipendente (1) | AF15: 5 | AG15: 1.3 | AH15: 2.99 | AI15: 2 | AK15: Riunioni di servizio interne. | AL15: Completezza e correttezza. Rispetto dei termini. | AM15: Ufficio 16.2 | AN15: già scaduto | AO15: Sì | AP15: Sì | AQ15: efficace
A16: 16.2 Ufficio Amministrazione scolastica | B16: - Altro (indicare nella colonna a fianco se ci sono altre attività a rischio al di fuori di quelle che rientrano in una di quelle sopra indicate). | C16: Servizi in missione del personale docente e direttivo | D16: Approvazione delle missioni e del conteggio finale relativo alle spese di missione del personale direttivo | F16: esterni: personale docente, dirigenti scolastici; interni: Direzione provinciale Scuole primarie e secondarie di primo e secondo grado | G16: Corretta osservanza delle disposizioni del contratto collettivo. | H16: Corretta osservanza delle disposizioni del contratto collettivo. | I16: I servizi in missione necessitano, in base alle disposizioni di cui ai contratti collettivi, di un'autorizzazione preventiva. | J16: I servizi in missione vengono autorizzati o meno. Le spese di missione vengono conteggiate. | K16: CCP del 16.5.2003 | L16: - direttore d'Ufficio | N16: 280 | O16: Disparità di trattamento | P16: Valutazione soggettiva | R16: E’ parzialmente vincolato dalla legge e/o da atti amministrativi (3) | S16: No, ha come destinatario finale un ufficio interno (2) | T16: No, il processo coinvolge una sola p.a. (1) | U16: Comporta l’attribuzione di vantaggi a soggetti esterni (3) | V16: No (1) | W16: Da più persone, tra cui quella che ha svolto le fasi precedenti (3) | X16: In parte (3) | Y16: No (1) | Z16: 17 | AA16: =ROUND(+Z16/8,1) -> 2.1 | AB16: Fino a circa il 20% (1) | AC16: No (1) | AD16: No (0) | AE16: A livello di dirigente (5) | AF16: 7 | AG16: =ROUND(+AF16/4,1) -> 1.8 | AH16: =+AA16*AG16 -> 3.78 | AK16: Limitazione delle spese per missioni. | AL16: Verifiche da parte dei nuclei di controllo. | AM16: Ufficio 16.2 | AN16: già scaduto | AO16: Sì | AP16: Sì | AQ16: efficace
A17: 16.2 Ufficio Amministrazione scolastica | B17: - A) Acquisizione e progressione del personale | D17: Riassunzione in servizio | F17: esterni: personale docente | G17: Corretto trattamento del personale | H17: Assunzione a tempo intederminato | I17: Su istanza il personale docente che in passato era assunto con contratto a tempo indeterminato può essere riassunto in servizio. | J17: Accoglimento o respingimento dell'istanza. | K17: d.lgs. n. 297/1994 | L17: - direttore d'Ufficio | N17: 1 | O17: La riassunzione in servizio è una decisione che viene presa - dopo aver sentito il consiglio del personale docente - discrezionalmente dalla Direttrice provinciale. | P17: Errata applicazione delle disposizioni. | R17: E’ parzialmente vincolato dalla legge e/o da atti amministrativi (3) | S17: Sì, il risultato del p. è rivolto dir. ad ut. esterni alla p.a. di rif. (5) | T17: No, il processo coinvolge una sola p.a. (1) | U17: Comporta l’attribuzione di vantaggi a soggetti esterni (3) | V17: No (1) | W17: Da più persone, tra cui quella che ha svolto le fasi precedenti (3) | X17: Sì (1) | Y17: Sì (5) | Z17: 22 | AA17: =ROUND(+Z17/8,1) -> 2.8 | AB17: Fino a circa il 20% (1) | AC17: No (1) | AD17: Non ne abbiamo memoria (1) | AE17: A livello di dirigente (5) | AF17: 8 | AG17: =ROUND(+AF17/4,1) -> 2 | AH17: =+AA17*AG17 -> 5.6 | AK17: Procedimento bifasico mediante una valutazione del consiglio personale e della successiva decisione della Direttrice provinciale. Criteri di valutazione standardizzati. | AL17: Numero di ricorsi presentati dagli istanti. | AM17: Ufficio 16.2 | AN17: già scaduto | AO17: Sì | AP17: Sì | AQ17: efficace
A18: 16.2 Ufficio Amministrazione scolastica | B18: - A) Acquisizione e progressione del personale | D18: Indizione ed espletamento di concorsi per il personale direttivo | F18: esterni: dirigenti scolastici | G18: Acquisizione del personale | H18: Assumere un incarico dirigenziale | I18: Agli impieghi nelle Pubbliche Amministrazioni si accede mediante concorso, salvo i casi stabiliti dalla legge. | J18: Posti vacanti vengono coperti mediante pubblico concorso. | K18: LP n. 24/1996, d.lgs. n. 165/2001 | L18: - impiegato addetto | N18: 0 | O18: Determinazione dei requisiti di ammissione; erronea verifica delle istanze | P18: Applicazione non corretta delle disposizioni | R18: E’ parzialmente vincolato dalla legge e/o da atti amministrativi (3) | S18: Sì, il risultato del p. è rivolto dir. ad ut. esterni alla p.a. di rif. (5) | T18: No, il processo coinvolge una sola p.a. (1) | U18: Comporta l’attribuzione di vantaggi a soggetti esterni (3) | V18: No (1) | W18: Da più persone, tra cui quella che ha svolto le fasi precedenti (3) | X18: In parte (3) | Y18: No (1) | Z18: 20 | AA18: =ROUND(+Z18/8,1) -> 2.5 | AB18: Fino a circa il 20% (1) | AC18: No (1) | AD18: Non ne abbiamo memoria (1) | AE18: A livello di dipendente (1) | AF18: 4 | AG18: =ROUND(+AF18/4,1) -> 1 | AH18: =+AA18*AG18 -> 2.5 | AK18: Più livelli della Direzione istruzione e formazione sono coinvolti nel processo decisionale; | AL18: Numero di ricorsi presentati dagli istanti. | AM18: Ufficio 16.2 | AN18: già scaduto | AO18: Sì | AP18: Sì | AQ18: efficace
A19: 16.3 Ufficio personale docente | B19: - A) Acquisizione e progressione del personale | D19: Indizione ed espletamento di concorsi per il personale docente | F19: esterni: personale docente e persone che aspirano al ruolo di docente, interni: direzione provinciale delle scuole primarie, scuole secondarie di primo grado e delle scuole secondarie di secondo grado. | G19: Attuazione dei compiti istituzionale in correlazione con l'assegnazione del personale delle scuole (assunzione di personale docente qualificato). | H19: Personale docente: sicurezza e pianificazione nel lavoro di insegnamento tramite una pianificazione delle assunzioni a tempo indeterminato; direzione provinciale: personale qualificato, stabilità delle risorse di personale | I19: Agli impieghi nelle Pubbliche Amministrazioni si accede mediante concorso, salvo i casi stabiliti dalla legge. | J19: Posti vacanti vengono coperti mediante pubblico concorso. | K19: LP n. 24/1996, relative disposizioni statali | L19: - direttore d'Ufficio | N19: 0 | O19: Determinazione dei requisiti di ammissione; erronea verifica delle istanze | P19: Applicazione non corretta delle disposizioni | Q19: Termini per candidarsi abbreviati a causa dell'urgenza. | R19: E’ parzialmente vincolato dalla legge e/o da atti amministrativi (3) | S19: Sì, il risultato del p. è rivolto dir. ad ut. esterni alla p.a. di rif. (5) | T19: No, il processo coinvolge una sola p.a. (1) | U19: Comporta l’attribuzione di vantaggi a soggetti esterni (3) | V19: No (1) | W19: Da più persone, tra cui quella che ha svolto le fasi precedenti (3) | X19: Sì (1) | Y19: No (1) | Z19: 18 | AA19: 2.3 | AB19: Fino a circa il 20% (1) | AC19: No (1) | AD19: Non ne abbiamo memoria (1) | AE19: A livello di dirigente (5) | AF19: 8 | AG19: 2 | AH19: 4.6 | AI19: 3 | AK19: Più livelli della Direzione istruzione e formazione sono coinvolti nel processo decisionale; | AL19: Numero di ricorsi presentati dagli istanti. | AM19: Ufficio 16.3 | AN19: già scaduto | AO19: Sì | AP19: Sì | AQ19: efficace
A20: 16.3 Ufficio personale docente | B20: - A) Acquisizione e progressione del personale | D20: Istituzione di graduatorie per l'assunzione di personale docente | F20: esterni: personale docente e persone che aspirano al ruolo di docente, dirigenti scolastici; interni: direzione provinciale delle scuole primarie, delle scuole secondarie di primo grado e delle scuole secondarie di secondo grado. | G20: Attuazione dei compiti istituzionale in correlazione con l'assegnazione del personale delle scuole (assunzione di personale docente qualificato). | H20: Personale docente: ottenimento delle infomazioni corrette e complete; stilazione di una graduatoria regolare; applicazione dei principi di parità di trattamento e della trasparenza. | I20: Il personale docente si iscrive in una graduatoria ai fini di un'assunzione in servizio a tempo determinato o indeterminato. | J20: Corretta redazione di graduatorie | K20: LP n. 24/1996, Delibera della Giunta provinciale n. 1421/2017 | L20: - direttore d'Ufficio | N20: 3558 | O20: Errata applicazione della tabella di valutazione. | P20: Errata applicazione delle disposizioni. | R20: E’ parzialmente vincolato dalla legge e/o da atti amministrativi (3) | S20: Sì, il risultato del p. è rivolto dir. ad ut. esterni alla p.a. di rif. (5) | T20: No, il processo coinvolge una sola p.a. (1) | U20: Comporta l’attribuzione di vantaggi a soggetti esterni (3) | V20: No (1) | W20: Da più persone, tra cui quella che ha svolto le fasi precedenti (3) | X20: Sì (1) | Y20: No (1) | Z20: 18 | AA20: 2.3 | AB20: Dal 20% a circa il 60% (3) | AC20: No (1) | AD20: Non ne abbiamo memoria (1) | AE20: A livello di dirigente (5) | AF20: 10 | AG20: 2.5 | AH20: 5.75 | AK20: Trasparenza mediante la pubblicazione delle graduatorie provvisorie e definitive sul sito della Direzione istruzione e formazione. Concessione di un termine per reclami da parte di controinteressati. | AL20: Numero di reclami. | AM20: Ufficio 16.3 | AN20: già scaduto | AO20: Sì | AP20: Sì | AQ20: efficace
A21: 16.3 Ufficio personale docente | B21: - A) Acquisizione e progressione del personale | D21: Esame sulla conoscenza della rispettiva lingua di insegnamento | F21: esterni: personale docente e persone che aspirano al ruolo di docente, dirigenti scolastici; interni: direzione provinciale delle scuole primarie, delle scuole secondarie di primo grado e delle scuole secondarie di secondo grado. | G21: Garanzia del principio dell'insegnamento nella madrelingua; interesse all'assunzione di personale docente qualificato sotto il profilo linguistico | H21: Sostenimento dell'esame finalizzato all'assunzione del personale docente | I21: Realizzazione del principio dell'insegnamento nella madrelingua; esame sull'adeguata conoscenza della lingua di insegnamento. | J21: Certificazione delle conoscenze linguistiche. | K21: LP n. 6/2000 | L21: - direttore d'Ufficio | N21: 2 | O21: La commissione potrebbe riferire le domande ai candiati o violare le disposizioni sull'anonimità del concorso. I criteri di valutazione potrebbero non essere stati predefiniti ex ante, al fine di favorire determinati candidati. | P21: Mancanza di imparzialità. Mancanza di una cultura dell'integrità. | R21: E’ parzialmente vincolato dalla legge e/o da atti amministrativi (3) | S21: Sì, il risultato del p. è rivolto dir. ad ut. esterni alla p.a. di rif. (5) | T21: No, il processo coinvolge una sola p.a. (1) | U21: Comporta l’attribuzione di vantaggi a soggetti esterni (3) | V21: No (1) | W21: Da più persone, tra cui quella che ha svolto le fasi precedenti (3) | X21: Sì (1) | Y21: No (1) | Z21: 18 | AA21: 2.3 | AB21: Fino a circa il 20% (1) | AC21: No (1) | AD21: Non ne abbiamo memoria (1) | AE21: A livello di dirigente (5) | AF21: 8 | AG21: 2 | AH21: 4.6 | AI21: 1 | AK21: Le domande di esame devono essere selezionate poco tempo prima dell'esame stesso (ad esempio lo stesso giorno dell'esame). Elaborazione di tracce d'esame individualizzate con scarsa ripetizione delle domande poste. | AL21: Risposte differenziate dei candidati e delle candidate (indicatore che non ci sono state previe consultazioni tra loro). | AM21: Ufficio 16.3 | AN21: già scaduto | AO21: Sì | AP21: Sì | AQ21: neutro
A22: 16.3 Ufficio personale docente | B22: - Altro (indicare nella colonna a fianco se ci sono altre attività a rischio al di fuori di quelle che rientrano in una di quelle sopra indicate). | D22: Riconoscimento dei servizi (ad es. servizi fuori ruolo, servizi in comuni montani) e progressione di carriera | F22: esterni: personale docente con rapporto di lavoro a tempo indeterminato | G22: Assolvimento dei compiti istituzionali relativamente all'amministrazione del personale. | H22: Inquadramento corretto e sviluppo della carriera | I22: Disposizioni sul riconoscimento dei servizi e sulle progressioni di carriera. | J22: Riconoscimento o mancato riconoscimento dei servizi; computo della progressione di carriera. | K22: d.lgs. n. 297/1994; CCP del 23.4.2003 | L22: - direttore d'Ufficio | N22: 1442 | O22: Errata applicazione delle disposizioni. | P22: Complessità delle disposizioni alla quale può conseguire un'errata applicazione delle stesse. | R22: No, è del tutto vincolato (1) | S22: Sì, il risultato del p. è rivolto dir. ad ut. esterni alla p.a. di rif. (5) | T22: No, il processo coinvolge una sola p.a. (1) | U22: Comporta l’attribuzione di vantaggi a soggetti esterni (3) | V22: No (1) | W22: Da più persone, tra cui quella che ha svolto le fasi precedenti (3) | X22: Sì (1) | Y22: No (1) | Z22: 16 | AA22: 2 | AB22: Dal 20% a circa il 60% (3) | AC22: No (1) | AD22: Non ne abbiamo memoria (1) | AE22: A livello di dirigente (5) | AF22: 10 | AG22: 2.5 | AH22: 5 | AK22: Conferenze interne. Disponibilità dei collaboratori per il chiarimento di domande. | AL22: Numero di ricorsi/reclami presentati dagli istanti. | AM22: Ufficio 16.3 | AN22: già scaduto | AO22: Sì | AP22: Sì | AQ22: neutro
A23: 16.3 Ufficio personale docente | B23: - Altro (indicare nella colonna a fianco se ci sono altre attività a rischio al di fuori di quelle che rientrano in una di quelle sopra indicate). | D23: Riconoscimento di varie indennità | F23: esterni: personale docente in servizio | G23: Assolvimento dei compiti istituzionali relativamente all'amministrazione del personale. | H23: Corretto riconoscimento dell'indennità | I23: Disposizioni prevedono che in determinati casi vengono riconosciute delle indennità. | J23: Riconoscimento di varie indennità. | K23: CCP del 23.4.2003 | L23: - direttore d'Ufficio | N23: 918 | O23: Errata applicazione delle disposizioni. | P23: Complessità delle disposizioni alla quale può conseguire un'errata applicazione delle stesse. | R23: No, è del tutto vincolato (1) | S23: Sì, il risultato del p. è rivolto dir. ad ut. esterni alla p.a. di rif. (5) | T23: No, il processo coinvolge una sola p.a. (1) | U23: Comporta l’attribuzione di vantaggi a soggetti esterni (3) | V23: No (1) | W23: Da più persone, tra cui quella che ha svolto le fasi precedenti (3) | X23: Sì (1) | Y23: No (1) | Z23: 16 | AA23: 2 | AB23: Fino a circa il 20% (1) | AC23: No (1) | AD23: Non ne abbiamo memoria (1) | AE23: A livello di dirigente (5) | AF23: 8 | AG23: 2 | AH23: 4 | AI23: 1 | AK23: Controlli a tappeto. | AL23: Numero di ricorsi/reclami presentati dagli istanti. | AM23: Ufficio 16.3 | AN23: 3 anni
A24: 16.3 Ufficio personale docente | B24: - Altro (indicare nella colonna a fianco se ci sono altre attività a rischio al di fuori di quelle che rientrano in una di quelle sopra indicate). | D24: Riconoscimento dei titoli di formazione professionale ai fini dell'insegnamento conseguiti in un altro stato membro dell'UE | F24: esterni: personale docente e persone che aspirano al ruolo di docente; interni: Direzione provinciale Scuole primarie e secondarie di primo e secondo grado | G24: Assolvimento dei compiti istituzionali relativamente al riconoscimento dei titoli di formazione professionale ai fini dell'insegnamento | H24: Corretto riconoscimento dei titoli di formazione professionale ai fini dell'insegnamento | I24: La Provincia di Bolzano è delegata ad esercitare le attribuzioni dello Stato in mateia di riconoscimento dei titoli di formazione professionale ai fini dell'insegnamento rilasciati nella UE ai fini dell'esercizio della professione di docente. | J24: Riconoscimento o non dei titoli di formazione professionale ai fini dell'insegnamento rilasciati in un paese membro dell'UE. | K24: L. n. 107/2015, Direttiva 2005/36 CE | L24: - direttore d'Ufficio | N24: 146 | O24: Discrezionalità nell'ambito della valutazione del percorso formativo abilitante. | P24: Complessità e molteplicità della struttura della formazione e della documentazione allegata all'istanza. | R24: E’ parzialmente vincolato dalla legge e/o da atti amministrativi (3) | S24: Sì, il risultato del p. è rivolto dir. ad ut. esterni alla p.a. di rif. (5) | T24: No, il processo coinvolge una sola p.a. (1) | U24: Comporta l’attribuzione di vantaggi a soggetti esterni (3) | V24: No (1) | W24: Da più persone, tra cui quella che ha svolto le fasi precedenti (3) | X24: Sì (1) | Y24: No (1) | Z24: 18 | AA24: 2.3 | AB24: Fino a circa il 20% (1) | AC24: No (1) | AD24: Non ne abbiamo memoria (1) | AE24: A livello di dirigente (5) | AF24: 8 | AG24: 2 | AH24: 4.6 | AI24: 2 | AK24: Procedimento di verifica a più fasi. Valutazione da parte di una commissione trasversale alle tre direzioni istruzione e formazione. Criteri standardizzati. Pubblicazione deiprovvedimenti di riconoscimento sul sito della direzione istruzione e formazione. | AL24: Numero di ricorsi/reclami presentati dagli istanti. | AM24: Ufficio 16.3 | AN24: già scaduto | AO24: Sì | AP24: Sì | AQ24: efficace
A25: 16.4 Ufficio acquisti | B25: - J) Incarichi e nomine | D25: Conferimento di incarichi ad esterni | F25: esterni: collaboratori esterni; interni: Direzione provinciale Scuole primarie e secondarie di primo e secondo grado, delle scuole professionali, delle scuole dell'infanzia, delle scuole di musica, Direzione Istruzione e Formazione, assessore provinciale | G25: Corsi di formazione per il proprio personale, consulenza, realizzazione di varie attività | H25: Ottenere l'incarico; miglioramento della qualità del lavoro | I25: L'amministrazione non è in grado di far fronte a determinate esigenze con personale in servizio. | J25: Conferimento di incarichi a soggetti esterni. | K25: Art. 1/octies della LP n. 5/2008; d.p.p. n. 45/2017; diverse deliberazioni della Giunta provinciale | L25: - direttore d'Ufficio | M25: 3000000 | N25: 600 | O25: Favoreggiamenti personali. Discrezionalità nella decisione. | P25: Ampia discrezionalità nel merito nell'ambito della valutazione della prifessionalità. | R25: E’ parzialmente vincolato dalla legge e/o da atti amministrativi (3) | S25: Sì, il risultato del p. è rivolto dir. ad ut. esterni alla p.a. di rif. (5) | T25: No, il processo coinvolge una sola p.a. (1) | U25: Comporta l’attribuzione di vantaggi a soggetti esterni (3) | V25: Sì (5) | W25: Da più persone, tra cui quella che ha svolto le fasi precedenti (3) | X25: Sì (1) | Y25: No (1) | Z25: 22 | AA25: 2.8 | AB25: Dal 20% a circa il 60% (3) | AC25: No (1) | AD25: No (0) | AE25: A livello di dipendente (1) | AF25: 5 | AG25: 1.3 | AH25: 3.64 | AK25: Trasparenza mediante pubblicazione dei provvedimenti. Impiego di procedure più aperte per la scelta. | AL25: Esame della qualità delle prestazioni effettuate. | AM25: Esperti che propongono e scelgono gli esperti esterni | AN25: già scaduto | AO25: Sì | AP25: Sì | AQ25: neutro
A26: 16.4 Ufficio acquisti | B26: - B) Contratti pubblici | D26: Definizione dell'oggetto dell'affidamento | E26: B1 | F26: esterni: società/imprese; interni: Direzione provinciale Scuole primarie e secondarie di primo e secondo grado, delle scuole professionali, delle scuole dell'infanzia, delle scuole di musica, Direzione Istruzione e Formazione; pubblici: scuole autonome | G26: Attuazione dei compiti istituzionali relativamente agli affidamenti; e alla promozione delle attività formative | H26: Ottenimento dell'incarico; miglioramento della qualità in ambito formativo; utilizzo delle risorse disponibili | I26: Pianificazione dell'amministrazione ed esigenze delle istituzioni formative. | J26: Individuazione del servizio o della fornitura da acquisire. | K26: LP n. 17/1993, d.p.p. n. 45/2017 | L26: - direttore d'Ufficio | N26: 450 | O26: Favoreggiamento di terzi, prestazioni non necessarie. Altri uffici dell'amministrazione provinciale partecipano alla decisione, condizionamenti esterni (ad es. dalla politica o da ditte private). | P26: Individuazione di un fabbisogno non corrispondente alle esigenze di una buona amministrazione. | R26: E’ parzialmente vincolato dalla legge e/o da atti amministrativi (3) | S26: No, ha come destinatario finale un ufficio interno (2) | T26: No, il processo coinvolge una sola p.a. (1) | U26: Ha rilevanza esclusivamente interna (1) | V26: No (1) | W26: Da più persone, tra cui quella che ha svolto le fasi precedenti (3) | X26: Sì (1) | Y26: Sì (5) | Z26: 17 | AA26: 2.1 | AB26: Fino a circa il 20% (1) | AC26: No (1) | AD26: No (0) | AE26: A livello di dipendente (1) | AF26: 3 | AG26: 0.8 | AH26: 1.68 | AK26: Pianificazione annuale e controlli da parte del preposto. | AL26: completezza e sussistenza e di priorità. | AM26: Ufficio 16.4 | AN26: già scaduto | AO26: Sì | AP26: Sì | AQ26: neutro
A27: 16.4 Ufficio acquisti | B27: - B) Contratti pubblici | D27: Individuazione dello strumento/istituto per l'affidamento | E27: B2 | F27: esterni: società/imprese; interni: Direzione provinciale Scuole primarie e secondarie di primo e secondo grado, delle scuole professionali, delle scuole dell'infanzia, delle scuole di musica, Direzione istruzione e formazione; pubblici: scuole autonome | G27: Attuazione dei compiti istituzionali relativamente agli affidamenti; e alla promozione delle attività formative | H27: Regolare svolgimento delle procedure di gara | I27: Scelta tra le diverse procedure di gara. | J27: Individuazione della procedura di gara. | K27: LP n. 17/1993, LP n. 16/2015, d.p.p. n. 45/2017 | L27: - direttore d'Ufficio | M27: 11130000 | N27: 950 | O27: Individuazione di una determinata procedura che potrebbe favorire determinati soggetti. | P27: Possibilità di scelta tra varie procedure. | Q27: Piccoli affidamenti che hanno la medesima prestazione in oggetto. | R27: E’ parzialmente vincolato dalla legge e/o da atti amministrativi (3) | S27: No, ha come destinatario finale un ufficio interno (2) | T27: No, il processo coinvolge una sola p.a. (1) | U27: Ha rilevanza esclusivamente interna (1) | V27: Sì (5) | W27: Da più persone, tra cui quella che ha svolto le fasi precedenti (3) | X27: Sì (1) | Y27: No (1) | Z27: 17 | AA27: 2.1 | AB27: Fino a circa il 20% (1) | AC27: No (1) | AD27: Non ne abbiamo memoria (1) | AE27: A livello di dirigente (5) | AF27: 8 | AG27: 2 | AH27: 4.2 | AK27: Direttive interne per gli affidamenti diretti. | AL27: Rispetto delle direttive. | AM27: Ufficio 16.4 | AN27: già scaduto | AO27: Sì | AP27: Sì | AQ27: efficace
A28: 16.4 Ufficio acquisti | B28: - B) Contratti pubblici | D28: Requisiti di qualificazione - requisiti di aggiudicazione | E28: B3 e B4 | F28: esterni: società/imprese; interni: Direzione provinciale Scuole primarie e secondarie di primo e secondo grado, delle scuole professionali, delle scuole dell'infanzia, delle scuole di musica, Direzione istruzione e formazione; pubblici: scuole autonome | G28: Attuazione dei compiti istituzionali relativamente agli affidamenti; e alla promozione delle attività formative | H28: Qualità della prestazione | I28: Rispetto dei principi degli appalti pubblici. | J28: Raggiungimento di una concorrenza possibilimente numerosa. Parità di trattamento. | K28: LP n. 17/1993, LP n. 16/2015, d.p.p. n. 45/2017 | L28: - impiegato addetto | M28: 11130000 | N28: 950 | O28: Elaborazione di requisiti di qualificazione e di aggiudicazione che favoriscono determinati soggetti, condizionamenti esterni (ad es. dalla politica, da ditte private) | P28: Discrezionalità nell'ambito dell'elaborazione dei criteri di aggiudicazione. | Q28: Parziale mancato rispetto della rotazione | R28: E’ parzialmente vincolato dalla legge e/o da atti amministrativi (3) | S28: No, ha come destinatario finale un ufficio interno (2) | T28: No, il processo coinvolge una sola p.a. (1) | U28: Ha rilevanza esclusivamente interna (1) | V28: No (1) | W28: Da più persone, tra cui quella che ha svolto le fasi precedenti (3) | X28: Sì (1) | Y28: No (1) | Z28: 13 | AA28: 1.6 | AB28: Fino a circa il 20% (1) | AC28: No (1) | AD28: No (0) | AE28: A livello di dipendente (1) | AF28: 3 | AG28: 0.8 | AH28: 1.28 | AK28: Utilizzi di moduli standard. Direttive interne. | AL28: Rispetto delle direttive. Esiguo numero di reclami/di ricorsi. | AM28: Ufficio 16.4 | AN28: già scaduto | AO28: Sì | AP28: Sì | AQ28: efficace
A29: 16.4 Ufficio acquisti | B29: - B) Contratti pubblici | D29: Valutazione delle offerte e verifica dell'eventuale anomalia delle offerte | E29: B5 e B6 | F29: esterni: società/imprese; interni: Direzione provinciale Scuole primarie e secondarie di primo e secondo grado, delle scuole professionali, delle scuole dell'infanzia, delle scuole di musica, Direzione istruzione e formazione; pubblici: scuole autonome | G29: Attuazione dei compiti istituzionali relativamente agli affidamenti; e alla promozione delle attività formative | H29: Qualità della prestazione | I29: Rispetto delle disposizioni del bando. | J29: Valutazione delle offerte. | K29: LP n. 17/1993, LP n. 16/2015, d.p.p. n. 45/2017 | L29: - impiegato addetto | M29: 11130000 | N29: 950 | O29: Favoreggiamento ingiustificato di determinate offerte, mancata osservanza dei requisiti di qualificazione e di aggiudicazione, condizionamenti esterni (ad es. dalla politica, da ditte private). | P29: Errata definizione dei criteri dell'appalto. | Q29: Valutazioni errate | R29: E’ parzialmente vincolato dalla legge e/o da atti amministrativi (3) | S29: Sì, il risultato del p. è rivolto dir. ad ut. esterni alla p.a. di rif. (5) | T29: No, il processo coinvolge una sola p.a. (1) | U29: Comporta l’attribuzione di considerevoli vantaggi a soggetti esterni (5) | V29: No (1) | W29: Da più persone, tra cui quella che ha svolto le fasi precedenti (3) | X29: Sì (1) | Y29: No (1) | Z29: 20 | AA29: 2.5 | AB29: Fino a circa il 20% (1) | AC29: No (1) | AD29: No (0) | AE29: A livello di dipendente (1) | AF29: 3 | AG29: 0.8 | AH29: 2 | AK29: Esame del verbale della commissione circa eventuali contradditorietà ed irregolarità. | AL29: Esiguo numero di reclami/di ricorsi. | AM29: Ufficio 16.4 | AN29: già scaduto | AO29: Sì | AP29: Sì | AQ29: neutro
A30: 16.4 Ufficio acquisti | B30: - B) Contratti pubblici | D30: Affidamento | E30: B8 | F30: esterni: società/imprese; interni: Direzione provinciale Scuole primarie e secondarie di primo e secondo grado, delle scuole professionali, delle scuole dell'infanzia, delle scuole di musica, Direzione istruzione e formazione; pubblici: scuole autonome | G30: Attuazione dei compiti istituzionali relativamente agli affidamenti; e alla promozione delle attività formative | H30: Ottenere l'incarico | I30: Rispetto delle disposizioni del bando. | J30: Affidamento e stipula del contratto. | K30: LP n. 17/1993, LP n. 16/2015, d.p.p. n. 45/2017 | L30: - direttore d'Ufficio | M30: 11130000 | N30: 950 | O30: Errata applicazione delle disposizioni per favorire determinate offerte. | P30: Errata applicazione del bando di gara. | Q30: Mancanza dei requisiti per l'aggiudicazione/conferimento dell'incarico | R30: E’ parzialmente vincolato dalla legge e/o da atti amministrativi (3) | S30: Sì, il risultato del p. è rivolto dir. ad ut. esterni alla p.a. di rif. (5) | T30: No, il processo coinvolge una sola p.a. (1) | U30: Comporta l’attribuzione di considerevoli vantaggi a soggetti esterni (5) | V30: No (1) | W30: Da più persone, tra cui quella che ha svolto le fasi precedenti (3) | X30: Sì (1) | Y30: No (1) | Z30: 20 | AA30: 2.5 | AB30: Fino a circa il 20% (1) | AC30: No (1) | AD30: No (0) | AE30: A livello di dirigente (5) | AF30: 7 | AG30: 1.8 | AH30: 4.5 | AI30: 2 | AK30: Utlizzo di check-list e svolgimento della procedura sul portale. | AL30: Esiguo numero di reclami/di ricorsi. | AM30: Ufficio 16.4 | AN30: già scaduto | AO30: Sì | AP30: Sì | AQ30: neutro
A31: 16.4 Ufficio acquisti | B31: - B) Contratti pubblici | D31: Esecuzione del contratto | F31: esterni: società/imprese; interni: Direzione provinciale Scuole primarie e secondarie di primo e secondo grado, delle scuole professionali, delle scuole dell'infanzia, delle scuole di musica, Direzione istruzione e formazione; pubblici: scuole autonome | G31: Attuazione dei compiti istituzionali relativamente agli affidamenti; e alla promozione delle attività formative | H31: Adempimento corretto della prestazione | I31: Rispetto delle condizioni contrattuali | J31: Esecuzione del contratto | K31: LP n. 17/1993, LP n. 16/2015, d.p.p. n. 45/2017 | L31: - impiegato addetto | M31: 11130000 | N31: 950 | O31: Mancato rispetto delle condizioni contrattuali | P31: mancata chiarezza delle condizioni contrattuali; ingiustificato favoreggiamento di una parte contrattuale | Q31: Mancanza dei requisiti per l'aggiudicazione/incarico | R31: No, è del tutto vincolato (1) | S31: Sì, il risultato del p. è rivolto dir. ad ut. esterni alla p.a. di rif. (5) | T31: No, il processo coinvolge una sola p.a. (1) | U31: Ha rilevanza esclusivamente interna (1) | V31: No (1) | W31: Da più persone, tra cui quella che ha svolto le fasi precedenti (3) | X31: Sì (1) | Y31: Sì (5) | Z31: 18 | AA31: =ROUND(+Z31/8,1) -> 2.3 | AB31: Fino a circa il 20% (1) | AC31: No (1) | AD31: No (0) | AE31: A livello di dirigente (5) | AF31: 7 | AG31: =ROUND(+AF31/4,1) -> 1.8 | AH31: =+AA31*AG31 -> 4.14 | AI31: 1 | AK31: Verifica se ci sia una corrispondenza tra fatturazione e prestazione effettuata ovvero se la prestazione sia stata eseguita correttamente | AL31: Esiguo numero di reclami/di ricorsi. | AM31: Ufficio 16.4 | AN31: immediato | AO31: Sì | AP31: Sì | AQ31: efficace
A32: 16.5 Ufficio Finanziamento delle istituzioni formative | B32: - Altro (indicare nella colonna a fianco se ci sono altre attività a rischio al di fuori di quelle che rientrano in una di quelle sopra indicate). | C32: Finanziamento delle scuole | D32: Assegnazioni ordinarie e straordinarie | F32: pubblici: scuole a carattere statale, scuole professionali; interni: Direzione provinciale Scuole primarie e secondarie di primo e secondo grado, delle scuole professionali | G32: Finanziamento delle scuole, equa ripartizione delle risorse finanziarie a seconda delle necessità | H32: Finanziamento delle scuole; stakeholder interni: decisioni strategiche in merito all'utilizzo delle risorse finanziarie, equa ripartizione delle risorse finanziarie a seconda delle necessità | I32: Scuole a carattere statale nonché scuole professionali devono essere finanziate affinché possano svolgere le loro funzioni istituzionali. | J32: Finanziamento delle scuole a carattere statale e delle scuole professionali | K32: LP n. 12/2000, LP n. 40/1992 | L32: - impiegato addetto | M32: 16675656.4 | N32: 765 | O32: Errata applicazione delle disposizioni per favorire determinate scuole. | P32: Violazione del principio di parità di trattamento. | R32: No, è del tutto vincolato (1) | S32: Sì, il risultato del p. è rivolto dir. ad ut. esterni alla p.a. di rif. (5) | T32: No, il processo coinvolge una sola p.a. (1) | U32: Comporta l’attribuzione di considerevoli vantaggi a soggetti esterni (5) | V32: No (1) | W32: Da più persone, tra cui quella che ha svolto le fasi precedenti (3) | X32: Sì (1) | Y32: No (1) | Z32: 18 | AA32: =ROUND(+Z32/8,1) -> 2.3 | AB32: Dal 20% a circa il 60% (3) | AC32: No (1) | AD32: No (0) | AE32: A livello di dipendente (1) | AF32: 5 | AG32: =ROUND(+AF32/4,1) -> 1.3 | AH32: =+AA32*AG32 -> 2.99 | AI32: 1 | AK32: Traparenza mediante modulistica standardizzata alla quale hanno accesso tutte le scuole. Trasparenza delle misure di assegnazione. | AL32: Numero di domande delle scuole in relazione ad istanze di altre scuole. | AM32: Ufficio 16.5 | AN32: già scaduto | AO32: Sì | AP32: Sì | AQ32: efficace
A33: 16.5 Ufficio Finanziamento delle istituzioni formative | B33: - D) Concessione e erogazione di sovvenzioni, contributi, sussidi ed ausili finanziari di qualsiasi genere (ossia provvedimenti ampliativi della sfera giuridica dei destinatari con effetto economico diretto e immediato per il destinatario) | D33: Contributi per la gestione di scuole private e di scuole dell'infanzia | E33: Fase 2 | F33: esterni: scuole private, scuole dell'infanzia; interni: Direzione provinciale Scuole primarie e secondarie di primo e secondo grado, delle scuole dell'infanzia, | G33: Finanziamento di istituzioni formative private, qualora ne sussistano i presupposti | H33: Ottenimento di un contibuto | I33: Soggetti privati possono, in base alle disposizioni vigenti, presentare un'istanza al fine di ottenere dei contributi. | J33: Accoglimento o respingimento dell'istanza. | K33: LP n. 12/2000, Delibera della Giunta provinciale n. 2634/2005 und n. 4722/2008 | L33: - impiegato addetto | M33: 8127782 | N33: 181 | O33: Errato calcolo degli importi per favorire determinate scuole private. | P33: Violazione del principio di parità di trattamento. | R33: No, è del tutto vincolato (1) | S33: Sì, il risultato del p. è rivolto dir. ad ut. esterni alla p.a. di rif. (5) | T33: No, il processo coinvolge una sola p.a. (1) | U33: Comporta l’attribuzione di considerevoli vantaggi a soggetti esterni (5) | V33: No (1) | W33: Da più persone, tra cui quella che ha svolto le fasi precedenti (3) | X33: Sì (1) | Y33: No (1) | Z33: 18 | AA33: =ROUND(+Z33/8,1) -> 2.3 | AB33: Fino a circa il 20% (1) | AC33: No (1) | AD33: Non ne abbiamo memoria (1) | AE33: A livello di dipendente (1) | AF33: 4 | AG33: =ROUND(+AF33/4,1) -> 1 | AH33: =+AA33*AG33 -> 2.3 | AK33: Pubblicazione obbligatoria dei contributi. Standardizzazione della modulistica con precompilazione dei calcoli tramite tabelle excel. | AL33: Decremento del dasso potenziale di errore di calcolo. | AM33: Ufficio 16.5 | AN33: già scaduto | AO33: Sì | AP33: Sì | AQ33: efficace
A34: 16.5 Ufficio Finanziamento delle istituzioni formative | B34: - J) Incarichi e nomine | D34: Nomina dei componenti dei nuclei di controllo delle scuole | F34: esterni: persone che hanno intenzione di essere nominati quali componenti dei nuclei di controllo delle scuole | G34: Nomina di persone qualificate | H34: Essere nominati componenti dei nuclei di controllo delle scuole | I34: Per il controllo contabile-amministrativo delle istituzioni scolastiche devono essere nominati degli esperti. | J34: Nomina dei componenti dei nuclei di controllo. | K34: LP n. 12/2000, LP n. 1/2002; d.p.p. n. 38/2017, | L34: - direttore d'Ufficio | N34: 1 | O34: Favoreggiamenti personali. Discrezionalità nella decisione. | P34: Nel momento della scelta dall'elenco, nel quale sono iscritti gli esperti, sussiste un'ampia discezionalità nel merito. | R34: E’ parzialmente vincolato dalla legge e/o da atti amministrativi (3) | S34: Sì, il risultato del p. è rivolto dir. ad ut. esterni alla p.a. di rif. (5) | T34: No, il processo coinvolge una sola p.a. (1) | U34: Comporta l’attribuzione di vantaggi a soggetti esterni (3) | V34: No (1) | W34: Da più persone, tra cui quella che ha svolto le fasi precedenti (3) | X34: In parte (3) | Y34: No (1) | Z34: 20 | AA34: =ROUND(+Z34/8,1) -> 2.5 | AB34: Fino a circa il 20% (1) | AC34: No (1) | AD34: No (0) | AE34: A livello di dirigente (5) | AF34: 7 | AG34: =ROUND(+AF34/4,1) -> 1.8 | AH34: =+AA34*AG34 -> 4.5 | AI34: 1 | AK34: Indicazione della motivazione in merito alla scelta della persona. Pubblicazione del provvedimento. | AL34: Numero di ricorsi/reclami. | AM34: Ufficio 16.5 | AN34: immediato | AO34: Sì | AP34: Sì | AQ34: efficace
AA35: 0 | AG35: 0 | AH35: 0
AA36: 0 | AG36: 0 | AH36: 0
AA37: 0 | AG37: 0 | AH37: 0
AA38: 0 | AG38: 0 | AH38: 0
AA39: 0 | AG39: 0 | AH39: 0
AA40: 0 | AG40: 0 | AH40: 0
AA41: 0 | AG41: 0 | AH41: 0
AA42: 0 | AG42: 0 | AH42: 0
AA43: 0 | AG43: 0 | AH43: 0
AA44: 0 | AG44: 0 | AH44: 0
AA45: 0 | AG45: 0 | AH45: 0
AA46: 0 | AG46: 0 | AH46: 0
AA47: 0 | AG47: 0 | AH47: 0
AA48: 0 | AG48: 0 | AH48: 0
AA49: 0 | AG49: 0 | AH49: 0
AA50: 0 | AG50: 0 | AH50: 0
AA51: 0 | AG51: 0 | AH51: 0
AA52: 0 | AG52: 0 | AH52: 0
AA53: 0 | AG53: 0 | AH53: 0
AA54: 0 | AG54: 0 | AH54: 0
AA55: 0 | AG55: 0 | AH55: 0
AA56: 0 | AG56: 0 | AH56: 0
AA57: 0 | AG57: 0 | AH57: 0
AA58: 0 | AG58: 0 | AH58: 0
AA59: 0 | AG59: 0 | AH59: 0
AA60: 0 | AG60: 0 | AH60: 0
AA61: 0 | AG61: 0 | AH61: 0
AA62: 0 | AG62: 0 | AH62: 0
AA63: 0 | AG63: 0 | AH63: 0
AA64: 0 | AG64: 0 | AH64: 0
AA65: 0 | AG65: 0 | AH65: 0
AA66: 0 | AG66: 0 | AH66: 0
AA67: 0 | AG67: 0 | AH67: 0
AA68: 0 | AG68: 0 | AH68: 0
AA69: 0 | AG69: =ROUND(+AF69/4,1) -> 0 | AH69: =+AA69*AG69 -> 0
AA70: =ROUND(+Z70/8,1) -> 0 | AG70: 0 | AH70: 0
AA71: 0 | AG71: 0 | AH71: 0
AA72: 0 | AG72: 0 | AH72: 0
AA73: 0 | AG73: 0 | AH73: 0
AA74: 0 | AG74: 0 | AH74: 0
AA75: 0 | AG75: 0 | AH75: 0
AA76: 0 | AG76: 0 | AH76: 0
AA77: 0 | AG77: 0 | AH77: 0
AA78: 0 | AG78: 0 | AH78: 0
AA79: 0 | AG79: 0 | AH79: 0
AA80: 0 | AG80: 0 | AH80: 0
AA81: 0 | AG81: 0 | AH81: 0
AA82: 0 | AG82: 0 | AH82: 0
AA83: 0 | AG83: 0 | AH83: 0
AA84: 0 | AG84: 0 | AH84: 0
AA85: 0 | AG85: 0 | AH85: 0
AA86: 0 | AG86: 0 | AH86: 0
AA87: 0 | AG87: 0 | AH87: 0
AA88: 0 | AG88: 0 | AH88: 0
AA89: 0 | AG89: 0 | AH89: 0
AA90: 0 | AG90: 0 | AH90: 0
AA91: 0 | AG91: 0 | AH91: 0
AA92: 0 | AG92: 0 | AH92: 0
AA93: 0 | AG93: 0 | AH93: 0
AA94: 0 | AG94: 0 | AH94: 0
AA95: 0 | AG95: 0 | AH95: 0
AA96: 0 | AG96: 0 | AH96: 0
AA97: 0 | AG97: 0 | AH97: 0
AA98: 0 | AG98: 0 | AH98: 0

Sheet registro
A1: Analisi del rischio
A2: PROBABILITÁ
A3: Discrezionalità
A4: Il processo è discrezionale?
A5: No, è del tutto vincolato (1)
A6: E’ parzialmente vincolato dalla legge e/o da atti amministrativi (3)
A7: E’ altamente discrezionale (5)
A9: Rilevanza esterna
A10: Il processo produce effetti diretti all’esterno dell’amministrazione provinciale?
A11: No, ha come destinatario finale un ufficio interno (2)
A12: Sì, il risultato del p. è rivolto dir. ad ut. esterni alla p.a. di rif. (5)
A14: Complessità del processo
A15: Si tratta di un processo complesso che comporta il coinvolgimento di più amministrazioni (esclusi i controlli) in fasi successive per il conseguimento del risultato?
A16: No, il processo coinvolge una sola p.a. (1)
A17: Sì, il processo coinvolge più di 3 amm. (3)
A18: Sì, il processo coinvolge più di 5 amm. (5)
A20: Rilevanza economica
A21: Qual è la rilevanza economica del processo?
A22: Ha rilevanza esclusivamente interna (1)
A23: Comporta l’attribuzione di vantaggi a soggetti esterni (3)
A24: Comporta l’attribuzione di considerevoli vantaggi a soggetti esterni (5)
A26: Frazionabilità del processo
A27: Il risultato finale del processo può essere raggiunto anche effettuando una pluralità di operazioni di entità economica ridotta che, considerate complessivamente, alla fine assicurano lo stesso risultato (es.: pluralità di affidamenti ridotti)?
A28: No (1)
A29: Sì (5)
A31: Controlli durante il processo
A32: Il tipo di controllo applicato durante il processo è svolto da persona diversa rispetto a quella che svolge le fasi precedenti del processo?
A33: Sì, da persona diversa (1)
A34: Da più persone, tra cui quella che ha svolto le fasi precedenti (3)
A35: No, viene svolto dalla stessa persona (4)
A36: No, non c'è nessun controllo (5)
A38: I singoli passaggi del processo vengono documentati?
A39: Sì (1)
A40: In parte (3)
A41: No (5)
A43: Vengono coinvolti soggetti esterni?
A44: No (1)
A45: Sì (5)
A48: IMPATTO
A49: Assetto organizzativo
A50: Rispetto al totale del personale impiegato nella singola unità organizzativa competente, quale percentuale di personale è impiegata nel processo? In caso di più uffici coinvolti, la percentuale va rapportata al personale complessivo di tutti gli uffici.
A51: Fino a circa il 20% (1)
A52: Dal 20% a circa il 60% (3)
A53: Dal 60% a circa il 100% (5)
A55: Incidenza economica
A56: Nel corso degli ultimi 5 anni sono state pronunciate sentenze della Corte dei conti a carico di dipendenti (dirigenti e dipendenti) dell'ufficio competente o sono state pronunciate sentenze di risarcimento del danno per la medesima o analoga tipologia di rischio?
A57: No (1)
A58: Sì (5)
A60: Reputazione
A61: Nel corso degli ultimi 5 anni sono stati pubblicati su giornali o riviste articoli aventi ad oggetto il medesimo rischio?
A62: No (0)
A63: Non ne abbiamo memoria (1)
A64: Sì, sulla stampa locale (3)
A65: Sì, sulla stampa locale e nazionale (5)
A67: Immagine e organizzazione
A68: A quale livello può collocarsi il rischio ovvero la posizione/il ruolo che il soggetto riveste nell’organizzazione?
A69: A livello di dipendente (1)
A70: A livello di dirigente (5)
A73: Aree a rischio ex art. 1, co. 16, L.190/2012:
A74: - A) Acquisizione e progressione del personale
A75: - B) Contratti pubblici
A76: - C) Autorizzazioni o concessioni (ossia provvedimenti ampliativi della sfera giuridica dei destinatari privi di effetto economico diretto e immediato per il destinatario)
A77: - D) Concessione e erogazione di sovvenzioni, contributi, sussidi ed ausili finanziari di qualsiasi genere (ossia provvedimenti ampliativi della sfera giuridica dei destinatari con effetto economico diretto e immediato per il destinatario)
A78: - E) Pianificazione territoriale e urbanistica
A79: - F) Pianificazione paesaggistica
A80: - G) Valutazione dell'impatto ambientale e procedura di approvazione cumulativa
A81: - H) Gestione delle entrate, delle spese e del patrimonio
A82: - I) Controlli, verifiche, ispezioni e sanzioni
A83: - J) Incarichi e nomine
A84: - K) Affari legali e contenzioso
A85: - L) La programmazione e gestione dei fondi europei
A86: - Altro (indicare nella colonna a fianco se ci sono altre attività a rischio al di fuori di quelle che rientrano in una di quelle sopra indicate).
A88: Responsabile (art. 10 e 11, LP n.17/1993)
A89: - direttore di Ripartizione
A90: - coordinatore d'area
A91: - direttore d'Ufficio
A92: - impiegato addetto
A94: Misura
A95: Termine di attuazione della misura
A96: già scaduto
A97: immediato
A98: 6 mesi
A99: 1 anno
A100: 3 anni
A102: Monitoraggio
A103: Si è attuata la misura?
A104: Sì
A105: No
A107: Si è rispettato il termine?
A108: Sì
A109: No
A111: Valutazione dell'attuazione della misura
A112: efficace
A113: neutro
A114: non efficace
